fUST/lending_fUST_20251002
["ID","MTS","AMOUNT","RATE_DAILY","PERIOD"]
[388746863,1759346019839,-334.45209696,0.00018978,2]
[388746864,1759346020908,173.828921,0.00018977,2]
[388746865,1759346021749,-222.28871557,0.00018978,2]
[388746866,1759346023972,-256.16061647,0.00018978,2]
[388746867,1759346026537,-303.33571407,0.00018978,2]
[388746868,1759346028190,-333.95455455,0.00018978,2]
[388746869,1759346028647,253.97273686,0.00018977,2]
[388746870,1759346029173,360.09190798,0.00018977,2]
[388746871,1759346030768,-227.46344808,0.00018978,2]
[388746872,1759346032286,-164.52220721,0.00018978,2]
[388746873,1759346032881,187.30172513,0.00018977,2]
[388746874,1759346034391,-177.3254538,0.00018978,2]
[388746875,1759346035451,303.33571407,0.00018977,2]
[388746876,1759346036064,-494.14806088,0.00018978,2]
[388746877,1759346038787,326.171079,0.00018977,2]
[388746878,1759346039505,337.26761523,0.00018977,2]
[388746879,1759346040297,-225.22986734,0.00018978,2]
[388746880,1759346042312,300.0,0.00018977,2]
[388746881,1759346043809,-248.45187072,0.00018978,2]
[388746882,1759346046988,304.43029923,0.00018977,2]
[388746883,1759346049669,-208.65514315,0.00018978,2]
[388746884,1759346050835,473.68173806,0.00018977,2]
[388746885,1759346051439,-372.15874734,0.00018978,2]
[388746886,1759346053580,-170.6148935,0.00018978,2]
[388746887,1759346058695,-720.0,0.00021292,20]
[388746888,1759346064401,-241.63803325,0.00018978,2]
[388746889,1759346066906,-180.25513429,0.00018978,2]
[388746890,1759346068631,557.51848013,0.00018977,2]
[388746891,1759346069027,-246.02726314,0.00018978,2]
[388746892,1759346071636,-390.19583285,0.00018978,2]
[388746893,1759346073116,302.52311595,0.00018977,2]
[388746894,1759346075847,-260.09997174,0.00018978,2]
[388746895,1759346076257,544.50513034,0.00018977,2]
[388746896,1759346078007,-285.58106092,0.00018978,2]
[388746897,1759346078934,170.6148935,0.00018978,2]
[388746898,1759346086433,260.09997174,0.00018977,2]
[388746899,1759346093271,-222.09345223,0.00018978,2]
[388746901,1759346096930,-379.13865768,0.00018978,2]
[388746902,1759346098379,-720.0,0.00021292,20]
[388746904,1759346099251,-286.23654563,0.00018978,2]
[388746905,1759346101268,-300.0,0.00018978,2]
[388746907,1759346102446,300.0,0.00018977,2]
[388746908,1759346103289,-166.84135727,0.00018978,2]
[388746910,1759346105995,-183.255087,0.00018978,2]
[388746911,1759346106616,500.0,0.00018977,2]
[388746912,1759346106651,214.61645047,0.00018977,2]
[388746913,1759346108798,-181.93168238,0.00018978,2]
[388746915,1759346110408,-408.03395468,0.00018978,2]
[388746916,1759346112248,283.27994537,0.00018977,2]
[388746917,1759346112354,-306.42553555,0.00018978,2]
[388746918,1759346113197,287.58654651,0.00018977,2]
[388746920,1759346115399,183.255087,0.00018977,2]
[388746921,1759346117463,-174.95342101,0.00018978,2]
[388746923,1759346118998,-276.9921209,0.00018978,2]
[388746924,1759346121704,-187.42973043,0.00018978,2]
[388746925,1759346123564,-1950.81561574,0.00018978,2]
[388746926,1759346123664,-10000.01,0.00018978,2]
[388746927,1759346123800,-10000.01,0.00018978,2]
[388746928,1759346123933,-10000.01,0.00018978,2]
[388746929,1759346125546,-10000.01,0.00018978,2]
[388746930,1759346126452,-407.18855488,0.00018978,2]
[388746932,1759346129062,-171.16813973,0.00018978,2]
[388746933,1759346130966,-360.37186939,0.00018978,2]
[388746935,1759346133037,-193.5237827,0.00018978,2]
[388746936,1759346133913,306.42553555,0.00018977,2]
[388746937,1759346133940,261.97980323,0.00018977,2]
[388746938,1759346135964,328.95239522,0.00018977,2]
[388746940,1759346136246,-288.60595056,0.00018978,2]
[388746942,1759346138229,502.66707642,0.00018977,2]
[388746943,1759346139439,-151.13666302,0.00018978,2]
[388746944,1759346141556,-349.36920343,0.00018978,2]
[388746945,1759346142929,500.0,0.00018977,2]
[388746946,1759346143033,-177.8382571,0.00018978,2]
[388746947,1759346144456,-205.84557784,0.00018978,2]
[388746948,1759346144857,-720.0,0.00021517,20]
[388746949,1759346145950,276.9921209,0.00018977,2]
[388746951,1759346148808,-221.63937728,0.00018978,2]
[388746953,1759346151324,-289.27485921,0.00018978,2]
[388746954,1759346156358,-152.70300438,0.00018978,2]
[388746955,1759346157901,-500.0,0.00018978,2]
[388746956,1759346158217,367.69352873,0.00018977,2]
[388746957,1759346161260,-154.43112863,0.00018978,2]
[388746958,1759346163159,289.27485921,0.00018977,2]
[388746959,1759346164744,-809.0,0.00019716,3]
[388746960,1759346165530,-333.02370465,0.00018978,2]
[388746961,1759346169169,-1311.25984549,0.00018978,2]
[388746962,1759346171344,-439.08508952,0.00018978,2]
[388746963,1759346172946,-200.0,0.00018978,2]
[388746964,1759346174611,-75.2707443,0.00018978,2]
[388746965,1759346191699,-720.0,0.00021517,20]
[388746968,1759346233781,-720.0,0.00021517,20]
[388746970,1759346273656,500.579015,0.00018477,2]
[388746973,1759346282781,300.0,0.00019077,2]
[388746975,1759346308657,-720.0,0.00021517,20]
[388746976,1759346311546,9700.01,0.00018888,3]
[388746977,1759346311568,10000.01,0.00018888,3]
[388746978,1759346311588,10000.01,0.00018888,3]
[388746979,1759346311608,10000.01,0.00018888,3]
[388746980,1759346311627,10000.01,0.00018888,3]
[388746981,1759346311647,10000.01,0.00018888,3]
[388746982,1759346311666,10000.01,0.00018888,3]
[388746983,1759346311686,10000.01,0.00018888,3]
[388746984,1759346311707,10000.01,0.00018888,3]
[388746985,1759346311727,10000.01,0.00018888,3]
[388746986,1759346311752,198.69093922,0.00018888,3]
[388746987,1759346312892,-495.89565102,0.00018888,3]
[388746988,1759346315272,-2422.2374476,0.00018888,3]
[388746989,1759346315410,-4844.4748952,0.00018888,3]
[388746990,1759346315542,-311.0602096,0.00018888,3]
[388746991,1759346315569,-195.75477631,0.00019077,2]
[388746992,1759346315595,-618.4575682,0.00019077,2]
[388746994,1759346342472,300.0,0.00019077,2]
[388746995,1759346346313,194.300234,0.00018385,2]
[388746996,1759346348227,-1637.73074614,0.00019078,2]
[388746997,1759346350610,-10000.01,0.00019078,2]
[388746998,1759346350734,-10000.01,0.00019078,2]
[388746999,1759346350890,-10000.01,0.00019078,2]
[388747000,1759346351459,-10000.01,0.00019078,2]
[388747001,1759346351582,-10000.01,0.00019078,2]
[388747002,1759346351741,-10000.01,0.00019078,2]
[388747003,1759346351863,-10000.01,0.00019078,2]
[388747004,1759346351994,-10000.01,0.00019078,2]
[388747005,1759346352142,-10000.01,0.00019078,2]
[388747006,1759346352593,-10000.01,0.00019078,2]
[388747007,1759346382447,-720.0,0.00021404,20]
[388747008,1759346387291,809.73,0.00019068,3]
[388747009,1759346402134,300.0,0.00019077,2]
[388747010,1759346416114,-720.0,0.00021404,20]
[388747011,1759346462637,300.0,0.00019077,2]
[388747013,1759346486869,3848.28786024,0.00019006,2]
[388747015,1759346500645,-5000000.0,0.00033585,20]
[388747016,1759346501809,590.01918744,0.00019006,2]
[388747018,1759346513329,-720.0,0.00021404,20]
[388747019,1759346522275,300.0,0.00019077,2]
[388747022,1759346541601,1200.0,0.00019077,2]
[388747024,1759346568283,150.5,0.0002191,120]
[388747025,1759346568502,150.5,0.0002191,120]
[388747026,1759346568727,150.5,0.000219,120]
[388747027,1759346568953,150.5,0.000219,120]
[388747028,1759346569168,150.5,0.0002189,120]
[388747029,1759346569391,161.77,0.0002189,120]
[388747030,1759346569612,161.72,0.00024488,120]
[388747031,1759346582316,300.0,0.00019077,2]
[388747032,1759346640309,500.0,0.00027397,120]
[388747033,1759346642430,300.0,0.00019077,2]
[388747034,1759346643161,-720.0,0.00021404,20]
[388747036,1759346665335,151.0,0.00024,120]
[388747037,1759346666740,151.0,0.000263,120]
[388747038,1759346668112,151.0,0.000286,120]
[388747039,1759346706907,250.0,0.00033667,120]
[388747040,1759346707037,500.0,0.00033667,120]
[388747041,1759346707562,250.0,0.00033667,60]
[388747042,1759346707830,500.0,0.00033667,60]
[388747043,1759346707906,200.0,0.00033667,120]
[388747044,1759346708203,250.0,0.00033667,120]
[388747045,1759346708278,500.0,0.00033667,120]
[388747046,1759346708331,200.0,0.00033667,60]
[388747047,1759346708981,200.0,0.00033667,120]
[388747048,1759346709364,500.0,0.00033667,120]
[388747049,1759346710005,500.0,0.00033667,60]
[388747050,1759346710116,151.0,0.00033667,120]
[388747051,1759346710607,500.0,0.00033667,120]
[388747052,1759346710769,151.0,0.00033667,60]
[388747053,1759346711217,500.0,0.00033667,120]
[388747054,1759346711425,151.0,0.00033667,120]
[388747055,1759346711805,250.0,0.00033667,120]
[388747056,1759346712491,250.0,0.00033667,60]
[388747057,1759346718134,500.0,0.00033667,120]
[388747058,1759346718807,500.0,0.00033667,60]
[388747059,1759346719444,500.0,0.00033667,120]
[388747060,1759346720741,151.0,0.00033667,120]
[388747061,1759346721424,151.0,0.00033667,60]
[388747062,1759346722063,151.0,0.00033667,60]
[388747063,1759346724287,156.587,0.00033667,120]
[388747064,1759346724922,162.380719,0.00033667,60]
[388747065,1759346726059,168.3888056,0.00033667,120]
[388747066,1759346732589,166.0,0.00033667,120]
[388747067,1759346733369,166.0,0.00033667,60]
[388747070,1759346762526,300.0,0.00019077,2]
[388747071,1759346771956,200.0,0.00033667,120]
[388747096,1759346823004,300.0,0.00019077,2]
[388747097,1759346827169,1451.97295232,0.00019006,2]
[388747098,1759346827190,1626.65733588,0.00019006,2]
[388747099,1759346882265,300.0,0.00019077,2]
[388747101,1759346922844,209.43993751,0.00026,120]
[388747102,1759346942607,300.0,0.00019077,2]
[388747103,1759346957282,500.0,0.00027397,120]
[388747104,1759347002077,300.0,0.00019077,2]
[388747105,1759347004367,-7473.35266412,0.00019078,2]
[388747106,1759347007283,250.0,0.00033667,120]
[388747107,1759347007313,200.0,0.00033667,120]
[388747108,1759347007911,250.0,0.00033667,120]
[388747109,1759347007957,200.0,0.00033667,60]
[388747110,1759347008003,500.0,0.00033667,120]
[388747111,1759347008395,-10000.01,0.00019078,2]
[388747112,1759347008572,200.0,0.00033667,120]
[388747113,1759347008604,500.0,0.00033667,60]
[388747114,1759347008635,156.587,0.00033667,120]
[388747115,1759347009202,156.587,0.00033667,120]
[388747116,1759347009271,500.0,0.00033667,120]
[388747117,1759347009941,151.0,0.00033667,120]
[388747118,1759347010545,151.0,0.00033667,60]
[388747119,1759347010682,250.0,0.00033667,120]
[388747120,1759347011166,151.0,0.00033667,120]
[388747121,1759347011331,250.0,0.00033667,60]
[388747122,1759347011985,250.0,0.00033667,120]
[388747123,1759347012606,250.0,0.00033667,120]
[388747124,1759347013223,166.0,0.00033667,120]
[388747125,1759347013839,166.0,0.00033667,120]
[388747126,1759347018508,500.0,0.00033667,120]
[388747127,1759347019152,500.0,0.00033667,60]
[388747128,1759347021033,500.0,0.00033667,120]
[388747129,1759347022324,516.26678901,0.00019006,2]
[388747180,1759347032116,-14018.12189052,0.00019078,2]
[388747182,1759347032129,-1236.45718998,0.00019078,2]
[388747184,1759347032141,-235634.22750924,0.00019078,2]
[388747186,1759347032151,-4715.60342924,0.00019106,2]
[388747189,1759347032168,-2781.09999522,0.00019106,2]
[388747274,1759347037874,-7956.21400334,0.00019106,2]
[388747275,1759347037884,-500.0,0.00019173,2]
[388747276,1759347037894,-501.47345628,0.00019173,2]
[388747277,1759347037903,-500.0,0.00019173,2]
[388747278,1759347037913,-500.0,0.00019173,2]
[388747279,1759347037923,-500.0,0.00019173,2]
[388747280,1759347037933,-500.0,0.00019173,2]
[388747281,1759347037943,-500.0,0.00019173,2]
[388747282,1759347037953,-500.0,0.00019173,2]
[388747283,1759347037963,-302.97896672,0.00019173,2]
[388747284,1759347037973,-500.0,0.00019173,2]
[388747285,1759347037983,-500.0,0.00019173,2]
[388747286,1759347037993,-50000.0,0.00019173,2]
[388747287,1759347038003,-500.0,0.00019173,2]
[388747289,1759347038015,-500.0,0.00019173,2]
[388747291,1759347038025,-500.0,0.00019173,2]
[388747292,1759347038034,-500.0,0.00019173,2]
[388747293,1759347038045,-501.07349506,0.00019173,2]
[388747294,1759347038055,-500.0,0.00019173,2]
[388747295,1759347038065,-500.0,0.00019173,2]
[388747296,1759347038074,-500.0,0.00019173,2]
[388747297,1759347038084,-500.0,0.00019173,2]
[388747298,1759347038094,-500.0,0.00019173,2]
[388747299,1759347038104,-500.0,0.00019173,2]
[388747300,1759347038113,-500.66210543,0.00019173,2]
[388747301,1759347038122,-480.0,0.00019178,2]
[388747302,1759347038133,-500.0,0.00019178,2]
[388747303,1759347038142,-500.0,0.00019178,2]
[388747304,1759347038152,-480.0,0.00019178,2]
[388747305,1759347038162,-583.41487089,0.00019178,2]
[388747306,1759347038172,-480.0,0.00019178,2]
[388747307,1759347038182,-500.0,0.00019178,2]
[388747308,1759347038191,-480.0,0.00019178,2]
[388747309,1759347038201,-480.0,0.00019178,2]
[388747310,1759347038210,-480.0,0.00019178,2]
[388747311,1759347038220,-500.0,0.00019178,2]
[388747312,1759347038230,-500.0,0.00019178,2]
[388747313,1759347038241,-500.0,0.00019178,2]
[388747314,1759347038251,-500.0,0.00019178,2]
[388747315,1759347038261,-480.0,0.00019178,2]
[388747316,1759347038270,-480.0,0.00019178,2]
[388747317,1759347038280,-480.0,0.00019178,2]
[388747318,1759347038289,-480.0,0.00019178,2]
[388747319,1759347038299,-530.6,0.00019178,2]
[388747320,1759347038309,-480.0,0.00019178,2]
[388747321,1759347038318,-409.89,0.00019178,2]
[388747322,1759347038327,-480.0,0.00019178,2]
[388747323,1759347038337,-480.0,0.00019178,2]
[388747324,1759347038347,-615.8,0.00019178,2]
[388747325,1759347038357,-480.0,0.00019178,2]
[388747326,1759347038368,-272.78391467,0.00019178,2]
[388747327,1759347038378,-419.14445693,0.00019178,2]
[388747328,1759347038388,-500.0,0.00019178,2]
[388747329,1759347038398,-500.0,0.00019178,2]
[388747330,1759347038407,-500.0,0.00019178,2]
[388747331,1759347038416,-480.0,0.00019178,2]
[388747332,1759347038426,-585.26,0.00019178,2]
[388747333,1759347038435,-480.0,0.00019178,2]
[388747334,1759347038447,-500.0,0.00019178,2]
[388747335,1759347038457,-542.24,0.00019178,2]
[388747336,1759347038467,-480.0,0.00019178,2]
[388747337,1759347038476,-480.0,0.00019178,2]
[388747338,1759347038486,-500.0,0.00019178,2]
[388747339,1759347038496,-480.0,0.00019178,2]
[388747340,1759347038506,-500.0,0.00019178,2]
[388747341,1759347038516,-500.02,0.00019178,2]
[388747342,1759347038527,-500.0,0.00019178,2]
[388747343,1759347038537,-500.0,0.00019178,2]
[388747344,1759347038548,-500.0,0.00019178,2]
[388747345,1759347038558,-500.0,0.00019178,2]
[388747346,1759347038568,-500.0,0.00019178,2]
[388747347,1759347038578,-500.0,0.00019178,2]
[388747348,1759347038588,-480.0,0.00019178,2]
[388747349,1759347038598,-480.0,0.00019178,2]
[388747350,1759347038609,-440.0,0.00019178,2]
[388747351,1759347038618,-500.0,0.00019178,2]
[388747352,1759347038628,-480.0,0.00019178,2]
[388747353,1759347038638,-480.0,0.00019178,2]
[388747354,1759347038647,-500.0,0.00019178,2]
[388747355,1759347038657,-500.0,0.00019178,2]
[388747356,1759347038917,-500.0,0.00019178,2]
[388747357,1759347038937,-500.0,0.00019178,2]
[388747358,1759347038948,-500.0,0.00019178,2]
[388747359,1759347038959,-500.0,0.00019178,2]
[388747360,1759347038969,-500.0,0.00019178,2]
[388747361,1759347038979,-500.0,0.00019178,2]
[388747362,1759347038989,-500.0,0.00019178,2]
[388747363,1759347038999,-500.0,0.00019178,2]
[388747364,1759347039008,-500.0,0.00019178,2]
[388747365,1759347039017,-500.0,0.00019178,2]
[388747366,1759347039027,-500.0,0.00019178,2]
[388747367,1759347039036,-480.0,0.00019178,2]
[388747368,1759347039047,-480.0,0.00019178,2]
[388747369,1759347039057,-500.0,0.00019178,2]
[388747370,1759347039066,-480.0,0.00019178,2]
[388747371,1759347039076,-500.0,0.00019178,2]
[388747372,1759347039085,-500.0,0.00019178,2]
[388747373,1759347039096,-480.0,0.00019178,2]
[388747374,1759347039105,-500.0,0.00019178,2]
[388747375,1759347039116,-500.0,0.00019178,2]
[388747376,1759347039126,-151.0,0.00019178,2]
[388747377,1759347039135,-480.0,0.00019178,2]
[388747378,1759347039146,-242.46671906,0.00019178,2]
[388747379,1759347039156,-151.0,0.00019178,2]
[388747380,1759347039167,-500.0,0.00019178,2]
[388747381,1759347039177,-500.0,0.00019178,2]
[388747382,1759347039188,-151.0,0.00019178,2]
[388747383,1759347039198,-151.0,0.00019178,2]
[388747384,1759347039207,-151.0,0.00019178,2]
[388747385,1759347039218,-500.0,0.00019178,2]
[388747386,1759347039227,-151.0,0.00019178,2]
[388747387,1759347039237,-480.0,0.00019178,2]
[388747388,1759347039247,-151.0,0.00019178,2]
[388747389,1759347039256,-151.55455188,0.00019178,2]
[388747390,1759347039266,-151.45944655,0.00019178,2]
[388747391,1759347039276,-480.0,0.00019178,2]
[388747392,1759347039287,-792.27,0.00019178,2]
[388747393,1759347039296,-480.0,0.00019178,2]
[388747394,1759347039306,-500.0,0.00019178,2]
[388747395,1759347039315,-500.0,0.00019178,2]
[388747396,1759347039325,-480.0,0.00019178,2]
[388747397,1759347039335,-500.0,0.00019178,2]
[388747398,1759347039344,-500.0,0.00019178,2]
[388747399,1759347039354,-500.0,0.00019178,2]
[388747400,1759347039364,-728.47590747,0.00019178,2]
[388747401,1759347039374,-500.0,0.00019178,2]
[388747402,1759347039383,-500.0,0.00019178,2]
[388747403,1759347039392,-500.0,0.00019178,2]
[388747404,1759347039402,-500.0,0.00019178,2]
[388747405,1759347039411,-480.0,0.00019178,2]
[388747406,1759347039421,-500.0,0.00019178,2]
[388747407,1759347039430,-500.0,0.00019178,2]
[388747408,1759347039444,-500.0,0.00019178,2]
[388747409,1759347039454,-235.02469634,0.00019178,2]
[388747410,1759347039465,-462.5478334,0.00019178,2]
[388747411,1759347039475,-460.0,0.00019178,2]
[388747412,1759347039486,-781.46,0.00019178,2]
[388747413,1759347039495,-500.0,0.00019178,2]
[388747414,1759347039506,-500.0,0.00019178,2]
[388747416,1759347039518,-500.0,0.00019178,2]
[388747418,1759347039528,-500.0,0.00019178,2]
[388747419,1759347039538,-283.5057541,0.00019178,2]
[388747420,1759347039547,-500.0,0.00019178,2]
[388747421,1759347039557,-500.0,0.00019178,2]
[388747422,1759347039567,-489.39225895,0.00019178,2]
[388747423,1759347039577,-500.0,0.00019178,2]
[388747424,1759347039586,-500.0,0.00019178,2]
[388747425,1759347039597,-500.0,0.00019178,2]
[388747426,1759347039606,-500.0,0.00019178,2]
[388747427,1759347039616,-480.0,0.00019178,2]
[388747428,1759347039628,-500.0,0.00019178,2]
[388747429,1759347039637,-480.0,0.00019178,2]
[388747430,1759347039647,-500.0,0.00019178,2]
[388747431,1759347039656,-510.51,0.00019178,2]
[388747432,1759347039666,-500.0,0.00019178,2]
[388747434,1759347039676,-500.0,0.00019178,2]
[388747435,1759347039685,-480.0,0.00019178,2]
[388747436,1759347039695,-500.0,0.00019178,2]
[388747437,1759347039704,-500.0,0.00019178,2]
[388747438,1759347039714,-693.05,0.00019178,2]
[388747439,1759347039723,-500.0,0.00019178,2]
[388747441,1759347039733,-480.0,0.00019178,2]
[388747443,1759347039742,-500.0,0.00019178,2]
[388747445,1759347039752,-500.0,0.00019178,2]
[388747447,1759347039761,-500.0,0.00019178,2]
[388747449,1759347039771,-500.0,0.00019178,2]
[388747451,1759347039781,-500.0,0.00019178,2]
[388747453,1759347039790,-500.0,0.00019178,2]
[388747455,1759347039800,-500.0,0.00019178,2]
[388747457,1759347039810,-500.0,0.00019178,2]
[388747459,1759347039819,-500.0,0.00019178,2]
[388747461,1759347039829,-480.0,0.00019178,2]
[388747462,1759347039838,-500.0,0.00019178,2]
[388747463,1759347039848,-500.0,0.00019178,2]
[388747464,1759347039859,-442.28655064,0.00019178,2]
[388747465,1759347039869,-500.0,0.00019178,2]
[388747466,1759347039878,-500.0,0.00019178,2]
[388747467,1759347039888,-500.0,0.00019178,2]
[388747468,1759347039897,-442.68339768,0.00019178,2]
[388747469,1759347039907,-500.0,0.00019178,2]
[388747470,1759347039917,-480.0,0.00019178,2]
[388747471,1759347039926,-500.0,0.00019178,2]
[388747472,1759347039936,-500.0,0.00019178,2]
[388747473,1759347039946,-500.0,0.00019178,2]
[388747474,1759347039955,-500.0,0.00019178,2]
[388747475,1759347039966,-500.0,0.00019178,2]
[388747476,1759347039975,-500.0,0.00019178,2]
[388747477,1759347039985,-443.11188125,0.00019178,2]
[388747478,1759347039994,-500.0,0.00019178,2]
[388747479,1759347040004,-500.0,0.00019178,2]
[388747480,1759347040013,-151.0,0.00019178,2]
[388747481,1759347040022,-151.0,0.00019178,2]
[388747482,1759347040032,-151.0,0.00019178,2]
[388747483,1759347040041,-500.0,0.00019178,2]
[388747485,1759347040052,-500.0,0.00019178,2]
[388747486,1759347040063,-500.0,0.00019178,2]
[388747487,1759347040072,-500.0,0.00019178,2]
[388747488,1759347040081,-500.0,0.00019178,2]
[388747489,1759347040091,-500.0,0.00019178,2]
[388747490,1759347040100,-151.0,0.00019178,2]
[388747491,1759347040109,-480.0,0.00019178,2]
[388747492,1759347040118,-294.98545417,0.00019178,2]
[388747493,1759347040128,-500.0,0.00019178,2]
[388747494,1759347040137,-158.67951241,0.00019178,2]
[388747495,1759347040146,-500.0,0.00019178,2]
[388747496,1759347040156,-479.71694254,0.00019178,2]
[388747497,1759347040165,-500.0,0.00019178,2]
[388747498,1759347040175,-500.0,0.00019178,2]
[388747499,1759347040186,-500.0,0.00019178,2]
[388747500,1759347040196,-500.0,0.00019178,2]
[388747501,1759347040206,-524.66702181,0.00019178,2]
[388747502,1759347040215,-500.0,0.00019178,2]
[388747503,1759347040225,-500.0,0.00019178,2]
[388747504,1759347040234,-500.0,0.00019178,2]
[388747505,1759347040245,-500.0,0.00019178,2]
[388747506,1759347040254,-500.0,0.00019178,2]
[388747507,1759347040263,-734.36,0.00019178,2]
[388747508,1759347040272,-500.0,0.00019178,2]
[388747509,1759347040282,-500.0,0.00019178,2]
[388747510,1759347040291,-1000.89,0.00019178,2]
[388747511,1759347040300,-500.0,0.00019178,2]
[388747512,1759347040309,-500.0,0.00019178,2]
[388747513,1759347040319,-500.0,0.00019178,2]
[388747514,1759347040328,-500.0,0.00019178,2]
[388747515,1759347040337,-500.0,0.00019178,2]
[388747516,1759347040346,-500.0,0.00019178,2]
[388747517,1759347040355,-500.0,0.00019178,2]
[388747518,1759347040364,-500.0,0.00019178,2]
[388747519,1759347040374,-500.0,0.00019178,2]
[388747520,1759347040383,-186.38023505,0.00019178,2]
[388747521,1759347040393,-500.0,0.00019178,2]
[388747522,1759347040402,-500.0,0.00019178,2]
[388747523,1759347040411,-500.0,0.00019178,2]
[388747524,1759347040420,-1140.33,0.00019178,2]
[388747525,1759347040429,-500.0,0.00019178,2]
[388747526,1759347040443,-500.0,0.00019178,2]
[388747527,1759347040453,-500.0,0.00019178,2]
[388747528,1759347040463,-500.0,0.00019178,2]
[388747529,1759347040472,-500.0,0.00019178,2]
[388747530,1759347040481,-500.0,0.00019178,2]
[388747531,1759347040492,-817.94,0.00019178,2]
[388747532,1759347040501,-500.0,0.00019178,2]
[388747533,1759347040511,-500.0,0.00019178,2]
[388747534,1759347040520,-151.0,0.00019178,2]
[388747535,1759347040530,-151.0,0.00019178,2]
[388747536,1759347040540,-500.0,0.00019178,2]
[388747537,1759347040549,-500.0,0.00019178,2]
[388747538,1759347040560,-500.0,0.00019178,2]
[388747539,1759347040569,-151.0,0.00019178,2]
[388747540,1759347040578,-151.0,0.00019178,2]
[388747541,1759347040587,-151.0,0.00019178,2]
[388747542,1759347040597,-500.0,0.00019178,2]
[388747543,1759347040607,-151.0,0.00019178,2]
[388747544,1759347040618,-500.0,0.00019178,2]
[388747545,1759347040628,-151.0,0.00019178,2]
[388747546,1759347040637,-1197.27,0.00019178,2]
[388747547,1759347040647,-500.0,0.00019178,2]
[388747548,1759347040656,-151.0,0.00019178,2]
[388747549,1759347040666,-500.0,0.00019178,2]
[388747550,1759347040676,-500.0,0.00019178,2]
[388747551,1759347040686,-151.0,0.00019178,2]
[388747552,1759347040696,-151.0,0.00019178,2]
[388747553,1759347040705,-151.0,0.00019178,2]
[388747554,1759347040715,-151.0,0.00019178,2]
[388747555,1759347040724,-500.0,0.00019178,2]
[388747556,1759347040733,-1043.95,0.00019178,2]
[388747557,1759347040743,-500.0,0.00019178,2]
[388747558,1759347040753,-500.0,0.00019178,2]
[388747559,1759347040763,-151.0,0.00019178,2]
[388747560,1759347040772,-151.0,0.00019178,2]
[388747561,1759347040781,-151.0,0.00019178,2]
[388747562,1759347040791,-2174.11,0.00019178,2]
[388747563,1759347040800,-500.0,0.00019178,2]
[388747564,1759347040810,-151.0,0.00019178,2]
[388747565,1759347040819,-151.0,0.00019178,2]
[388747566,1759347040829,-1689.91,0.00019178,2]
[388747567,1759347040838,-500.0,0.00019178,2]
[388747568,1759347040847,-151.0,0.00019178,2]
[388747569,1759347040857,-932.13,0.00019178,2]
[388747570,1759347040866,-500.0,0.00019178,2]
[388747571,1759347040876,-500.0,0.00019178,2]
[388747572,1759347040886,-500.0,0.00019178,2]